bitfinex-derivatives/quotes_BTCF0:USTF0_20240814
["timestamp","ask_amount","ask_price","bid_price","bid_amount"]
[1723606566667,0.08123535,61130.0,61110.0,0.3608]
[1723606566862,0.08123535,61130.0,61104.0,0.53924763]
[1723606566863,0.08123535,61130.0,61129.0,0.3608]
[1723606568168,0.081761,61131.0,61129.0,0.3608]
[1723606568362,0.00024536,61136.0,61129.0,0.3608]
[1723606568562,0.081755,61135.0,61129.0,0.3608]
[1723606568766,0.00024536,61136.0,61129.0,0.3608]
[1723606568955,0.00024536,61136.0,61131.0,0.081759]
[1723606569874,0.00124536,61136.0,61130.0,0.0455]
[1723606570269,0.2828,61131.0,61126.0,0.04823622]
[1723606570563,0.081769,61124.0,61123.0,0.00024536]
[1723606570765,0.364569,61124.0,61123.0,0.00024536]
[1723606573171,0.364569,61124.0,61123.0,0.00124536]
[1723606573473,0.855369,61124.0,61123.0,0.00124536]
[1723606573666,0.855369,61124.0,61116.0,0.04823622]
[1723606573667,0.163556,61117.0,61116.0,0.04823622]
[1723606573968,0.081785,61112.0,61104.0,0.08044955]
[1723606574170,0.442585,61112.0,61104.0,0.08044955]
[1723606574765,0.442585,61112.0,61105.0,0.00024536]
[1723606575063,0.52437,61112.0,61105.0,0.00024536]
[1723606575265,1.41529,61112.0,61105.0,0.00024536]
[1723606575871,1.76889,61112.0,61105.0,0.00024536]
[1723606576365,1.287105,61112.0,61105.0,0.00024536]
[1723606576676,1.288105,61112.0,61105.0,0.00024536]
[1723606576978,0.081793,61106.0,61105.0,0.00024536]
[1723606578576,0.081793,61106.0,61105.0,0.00624536]
[1723606578777,0.082793,61106.0,61105.0,0.00624536]
[1723606579270,0.082793,61106.0,61105.0,0.00924536]
[1723606583267,0.16410035,61106.0,61105.0,0.00924536]
[1723606586379,0.082793,61106.0,61105.0,0.00924536]
[1723606599588,0.808186,61106.0,61105.0,0.00924536]
[1723606599886,0.9163453,61106.0,61105.0,0.00832083]
[1723606600091,0.96661112,61106.0,61105.0,0.00832083]
[1723606600291,1.85757112,61106.0,61105.0,0.00832083]
[1723606600497,1.90547112,61106.0,61105.0,0.00832083]
[1723606600888,0.163604,61099.0,61098.0,0.06431489]
[1723606601088,0.86531062,61099.0,61098.0,0.06431489]
[1723606601285,1.35631062,61099.0,61098.0,0.06431489]
[1723606601480,1.27450862,61099.0,61098.0,0.06431489]
[1723606601685,0.42270862,61099.0,61098.0,0.06431489]
[1723606602190,0.42270862,61099.0,61098.0,0.005]
[1723606603387,0.42370862,61099.0,61098.0,0.013]
[1723606603783,0.05910662,61099.0,61098.0,0.094804]
[1723606603988,0.0275159,61099.0,61098.0,0.094804]
[1723606604991,0.0275159,61099.0,61098.0,0.585804]
[1723606606592,0.0275159,61099.0,61098.0,0.094804]
[1723606606992,0.0275159,61099.0,61098.0,0.455604]
[1723606607600,0.12552998,61099.0,61098.0,0.455604]
[1723606607792,0.09901408,61099.0,61098.0,0.455604]
[1723606608502,0.46361608,61099.0,61098.0,0.013]
[1723606609096,0.46361608,61099.0,61098.0,0.3738]
[1723606610898,0.46361608,61099.0,61098.0,0.013]
[1723606612600,0.365602,61099.0,61098.0,0.013]
[1723606614793,0.39212021,61099.0,61098.0,0.013]
[1723606620002,0.49009813,61099.0,61098.0,0.013]
[1723606621195,0.39212021,61099.0,61098.0,0.013]
[1723606621397,0.365602,61099.0,61098.0,0.013]
[1723606622798,0.447404,61099.0,61098.0,0.013]
[1723606624507,0.51273711,61099.0,61098.0,0.013]
[1723606624804,0.52273711,61099.0,61098.0,0.013]
[1723606626000,0.08181,61093.0,61092.0,0.00024536]
[1723606626306,0.80722,61093.0,61092.0,0.00024536]
[1723606626695,0.72541,61093.0,61092.0,0.00024536]
[1723606626900,0.36461,61093.0,61092.0,0.00024536]
[1723606627100,0.08181,61093.0,61092.0,0.00024536]
[1723606627291,0.08281,61093.0,61092.0,0.00224536]
[1723606627699,0.08281,61093.0,61092.0,0.01424536]
[1723606627903,0.00963006,61096.0,61092.0,0.01224536]
[1723606628207,0.06533999,61098.0,61095.0,0.3608]
[1723606628398,0.081806,61097.0,61096.0,0.0468]
[1723606628898,0.081806,61097.0,61096.0,0.53784]
[1723606630108,0.081806,61097.0,61096.0,0.0468]
[1723606630708,0.081806,61097.0,61096.0,0.0488]
[1723606632113,0.082806,61097.0,61096.0,0.0488]
[1723606634216,0.10932279,61097.0,61096.0,0.0488]
[1723606634417,0.10932279,61097.0,61096.0,1.021646]
[1723606634418,0.02751679,61097.0,61096.0,1.021646]
[1723606634616,0.001,61097.0,61096.0,1.021646]
[1723606635418,0.001,61097.0,61096.0,0.621646]
[1723606636021,0.082805,61097.0,61096.0,0.0488]
[1723606636520,0.16461,61097.0,61096.0,0.002]
[1723606636826,0.17382412,61097.0,61096.0,0.002]
[1723606640012,1.07486412,61097.0,61096.0,0.002]
[1723606641924,0.16362,61093.0,61092.0,0.00024536]
[1723606642124,0.80722,61093.0,61092.0,3.6e-07]
[1723606642317,0.88253481,61093.0,61092.0,3.6e-07]
[1723606642517,0.96434481,61093.0,61092.0,3.6e-07]
[1723606642723,1.04466741,61093.0,61092.0,3.6e-07]
[1723606642919,0.163644,61084.0,61083.0,0.3608]
[1723606643120,0.446444,61084.0,61083.0,0.3608]
[1723606643918,0.16365,61082.0,61081.0,0.06476855]
[1723606644826,0.21145,61082.0,61081.0,0.06476855]
[1723606645222,0.21245,61082.0,61081.0,0.07276855]
[1723606645625,0.21345,61082.0,61081.0,0.07276855]
[1723606646717,0.57425,61082.0,61081.0,5.5e-07]
[1723606646918,0.16366,61078.0,61077.0,0.00016427]
[1723606647133,0.44646,61078.0,61077.0,0.00016427]
[1723606648026,0.44746,61078.0,61077.0,0.00016427]
[1723606649033,0.36563,61078.0,61077.0,0.00016427]
[1723606649221,0.081828,61080.0,61077.0,0.36096427]
[1723606649425,0.001,61078.0,61077.0,0.36096427]
[1723606649631,0.08483,61078.0,61077.0,0.38496427]
[1723606649832,0.003,61078.0,61077.0,0.38496427]
[1723606650726,0.002,61078.0,61077.0,0.38496427]
[1723606651726,0.003,61078.0,61077.0,0.38496427]
[1723606654936,0.003,61078.0,61077.0,0.02416427]
[1723606655732,0.08483,61078.0,61077.0,0.02416427]
[1723606658927,0.003,61078.0,61077.0,0.02416427]
[1723606661946,0.08483,61078.0,61077.0,0.02416427]
[1723606665945,0.36763,61078.0,61077.0,0.02416427]
[1723606667848,0.08483,61078.0,61077.0,0.38496427]
[1723606668148,0.08483,61078.0,61077.0,0.02416427]
[1723606668344,0.36763,61078.0,61077.0,0.02416427]
[1723606682254,0.44946,61078.0,61077.0,0.02416427]
[1723606683660,0.36763,61078.0,61077.0,0.02416427]
[1723606684050,0.003,61078.0,61077.0,0.02416427]
[1723606684249,0.12922781,61094.0,61077.0,1.19812427]
[1723606684446,0.08181,61093.0,61089.0,0.3608]
[1723606685454,0.081812,61092.0,61089.0,0.3608]
[1723606685658,0.08205957,61090.0,61089.0,0.3608]
[1723606686058,0.12875957,61090.0,61089.0,0.3608]
[1723606686258,0.12975957,61090.0,61089.0,0.3608]
[1723606686757,0.22605957,61090.0,61089.0,0.3608]
[1723606687959,0.23005957,61090.0,61089.0,0.3608]
[1723606690166,0.31172751,61090.0,61089.0,0.3608]
[1723606690456,0.31372751,61090.0,61089.0,0.3608]
[1723606690658,0.53956796,61090.0,61079.0,0.081829]
[1723606690864,0.60185957,61090.0,61089.0,0.001]
[1723606691060,0.62838361,61090.0,61089.0,0.001]
[1723606691764,0.081818,61088.0,61079.0,0.081829]
[1723606691961,0.06533401,61082.0,61079.0,0.083829]
[1723606692259,0.08166751,61087.0,61079.0,0.083829]
[1723606692260,0.06533401,61083.0,61079.0,0.083829]
[1723606694062,0.1132,61081.0,61079.0,0.081829]
[1723606695055,0.001,61083.0,61080.0,0.1132]
[1723606695260,0.001,61083.0,61082.0,0.195025]
[1723606695462,0.06533401,61086.0,61085.0,0.081821]
[1723606695659,0.06533401,61086.0,61085.0,0.555821]
[1723606696160,0.06533401,61087.0,61085.0,0.555821]
[1723606696761,0.06533401,61087.0,61086.0,0.081819]
[1723606698075,0.06533401,61087.0,61086.0,0.14664623]
[1723606700072,0.1132,61089.0,61086.0,0.14664623]
[1723606700268,0.00024557,61090.0,61087.0,0.081818]
[1723606700569,0.00024557,61090.0,61088.0,0.1132]
[1723606700871,0.1132,61088.0,61087.0,0.081818]
[1723606703670,0.1142,61088.0,61087.0,0.081818]
[1723606704173,0.00024557,61090.0,61089.0,0.081815]
[1723606704369,0.0652702,61099.0,61088.0,0.49108]
[1723606704563,0.1784702,61099.0,61098.0,0.3608]
[1723606704972,0.1784702,61099.0,61098.0,0.8518]
[1723606705173,0.1132,61099.0,61098.0,0.3608]
[1723606705368,0.1132,61099.0,61098.0,0.491]
[1723606705558,0.1132,61099.0,61097.0,0.081804]
[1723606705963,0.1132,61099.0,61098.0,0.3608]
[1723606706169,0.1132,61099.0,61098.0,0.081803]
[1723606706374,0.1232,61099.0,61098.0,0.572803]
[1723606706772,0.01,61099.0,61098.0,0.686003]
[1723606707271,0.00024557,61105.0,61104.0,0.081795]
[1723606707477,0.00024557,61105.0,61104.0,0.555795]
[1723606708366,0.00024557,61105.0,61104.0,0.556795]
[1723606708573,0.01424557,61105.0,61104.0,0.556795]
[1723606709072,0.04075801,61105.0,61104.0,0.001]
[1723606709569,0.13848262,61105.0,61104.0,0.001]
[1723606709872,0.15248262,61105.0,61104.0,0.001]
[1723606711167,0.15244566,61105.0,61104.0,0.001]
[1723606711469,0.05475801,61105.0,61104.0,0.001]
[1723606712076,0.02824557,61105.0,61104.0,0.001]
[1723606712868,0.02824557,61105.0,61104.0,0.1142]
[1723606714077,0.02824557,61105.0,61104.0,0.12364874]
[1723606720374,0.05475826,61105.0,61104.0,0.12364874]
[1723606720891,0.05475826,61105.0,61104.0,0.48444874]
[1723606721764,0.08634574,61105.0,61104.0,0.48444874]
[1723606725287,0.11793327,61105.0,61104.0,0.48444874]
[1723606725883,0.11793381,61105.0,61104.0,0.48444874]
[1723606726691,0.28152181,61105.0,61104.0,0.001]
[1723606726876,0.28152181,61105.0,61098.0,0.001]
[1723606726877,0.081802,61099.0,61098.0,0.001]
[1723606727084,0.195002,61099.0,61098.0,0.001]
[1723606727286,0.081802,61099.0,61098.0,0.001]
[1723606727475,0.081802,61099.0,61098.0,0.1142]
[1723606728390,0.081802,61099.0,61098.0,0.1132]
[1723606728580,0.081802,61099.0,61098.0,0.122824]
[1723606729789,0.081802,61099.0,61098.0,0.009624]
[1723606729991,0.081805,61097.0,61096.0,0.3608]
[1723606730187,0.195005,61097.0,61096.0,0.3608]
[1723606730684,0.195005,61097.0,61096.0,0.37036075]
[1723606734286,0.195005,61097.0,61096.0,0.00956075]
[1723606734486,0.081806,61096.0,61095.0,0.41098927]
[1723606734682,0.081806,61096.0,61095.0,0.3608]
[1723606735086,0.081806,61096.0,61095.0,0.37038963]
[1723606735783,0.081806,61096.0,61095.0,0.3608]
[1723606737992,0.0586,61099.0,61095.0,0.474]
[1723606738190,0.0586,61099.0,61098.0,0.1132]
[1723606738491,0.008,61099.0,61098.0,0.1132]
[1723606739195,0.008,61099.0,61098.0,0.195003]
[1723606740686,0.008,61099.0,61098.0,0.81062529]
[1723606740890,0.008,61099.0,61098.0,0.36832529]
[1723606741390,0.008,61099.0,61098.0,0.243703]
[1723606741597,0.008,61099.0,61098.0,0.36832292]
[1723606741989,0.1132,61103.0,61101.0,0.081799]
[1723606742185,0.1132,61103.0,61102.0,0.3608]
[1723606742390,0.17130235,61103.0,61102.0,0.35262011]
[1723606743389,0.17130235,61103.0,61102.0,0.43441811]
[1723606743592,0.05810235,61103.0,61102.0,0.43441811]
[1723606744689,0.07110235,61103.0,61102.0,0.43441811]
[1723606744894,0.11114799,61103.0,61102.0,0.43441811]
[1723606745396,0.11114799,61103.0,61102.0,0.442598]
[1723606746396,0.07110202,61103.0,61102.0,0.442598]
[1723606746598,0.07110202,61103.0,61102.0,0.081798]
[1723606746795,0.07110202,61103.0,61102.0,0.442598]
[1723606748303,0.07110202,61103.0,61102.0,0.45212139]
[1723606749893,0.07110202,61103.0,61102.0,0.09132139]
[1723606750099,0.07110202,61103.0,61102.0,0.45212139]
[1723606750304,0.013,61103.0,61102.0,0.45212139]
[1723606753197,0.027,61103.0,61102.0,0.45212139]
[1723606757193,0.027,61103.0,61098.0,0.081803]
[1723606757410,0.195002,61099.0,61096.0,0.3608]
[1723606758505,0.195002,61099.0,61096.0,0.37051606]
[1723606759502,0.211002,61099.0,61096.0,0.37051606]
[1723606759803,0.211002,61099.0,61096.0,0.45232206]
[1723606760601,0.211002,61099.0,61097.0,0.195004]
[1723606760802,0.097802,61099.0,61097.0,0.195004]
[1723606761711,0.091802,61099.0,61097.0,0.195004]
[1723606762003,0.007,61099.0,61098.0,0.081803]
[1723606762201,0.018,61099.0,61098.0,0.081803]
[1723606763115,0.007,61099.0,61098.0,0.081803]
[1723606763303,0.02,61099.0,61098.0,0.081803]
[1723606764410,0.1332,61099.0,61098.0,0.081803]
[1723606764611,0.1342,61099.0,61098.0,0.081803]
[1723606764914,0.081805,61097.0,61096.0,0.73291606]
[1723606765109,0.195005,61097.0,61096.0,0.73131606]
[1723606765413,0.1132,61097.0,61096.0,0.73131606]
[1723606766206,0.1192,61097.0,61096.0,0.73131606]
[1723606766404,0.201005,61097.0,61096.0,0.73131606]
[1723606766603,0.211005,61097.0,61096.0,0.73131606]
[1723606767207,0.097805,61097.0,61096.0,0.73131606]
[1723606767405,0.097805,61097.0,61096.0,0.84451606]
[1723606767615,0.016,61097.0,61096.0,0.84451606]
[1723606768219,0.08136527,61097.0,61096.0,0.84451606]
[1723606768417,0.08136527,61097.0,61096.0,0.92632206]
[1723606768617,0.016,61097.0,61096.0,0.81312206]
[1723606769013,0.08136527,61097.0,61096.0,0.81312206]
[1723606770712,0.017,61097.0,61096.0,0.81312206]
[1723606771011,0.08236527,61097.0,61096.0,0.81312206]
[1723606771324,0.07236527,61097.0,61096.0,0.81312206]
[1723606772013,0.08336527,61097.0,61096.0,0.81312206]
[1723606772514,0.12715872,61097.0,61096.0,0.81312206]
[1723606774222,0.24035872,61097.0,61096.0,0.81312206]
[1723606774819,0.27195081,61097.0,61096.0,0.81312206]
[1723606775521,0.40266598,61097.0,61096.0,0.81312206]
[1723606776031,0.27195081,61097.0,61096.0,0.81312206]
[1723606778521,0.35375581,61097.0,61096.0,0.73131606]
[1723606779119,0.081807,61095.0,61094.0,0.04864092]
[1723606779323,0.25311577,61095.0,61092.0,0.00978303]
[1723606779623,0.1094374,61094.0,61092.0,0.00978303]
[1723606779825,0.05132863,61093.0,61092.0,0.00978303]
[1723606780131,0.07784726,61093.0,61092.0,0.00978303]
[1723606780422,0.05132863,61093.0,61092.0,0.00978303]
[1723606781726,0.05432863,61093.0,61092.0,0.00978303]
[1723606782119,0.06032863,61093.0,61092.0,0.00978303]
[1723606784727,0.06032863,61093.0,61092.0,0.45239403]
[1723606786931,0.06032863,61093.0,61092.0,0.56559403]
[1723606788646,0.06032863,61093.0,61092.0,0.69022994]
[1723606788845,0.06032863,61093.0,61092.0,0.78757113]
[1723606789044,0.06032863,61093.0,61092.0,0.69022994]
[1723606789535,0.009,61093.0,61092.0,0.69022994]
[1723606790539,0.009,61093.0,61092.0,0.57702994]
[1723606792147,0.009,61093.0,61092.0,0.69022994]
[1723606793349,0.009,61093.0,61092.0,0.84192565]
[1723606793540,0.009,61093.0,61092.0,0.72872836]
[1723606793849,0.009,61093.0,61092.0,0.57702994]
[1723606795748,0.03551697,61093.0,61092.0,0.45239403]
[1723606796243,0.07556882,61093.0,61092.0,0.37058303]
[1723606796451,0.10716152,61093.0,61092.0,0.37058303]
[1723606796650,0.18897152,61093.0,61092.0,0.37058303]
[1723606796847,0.54977152,61093.0,61092.0,0.00024557]
[1723606797150,0.59997814,61093.0,61092.0,0.00024557]
[1723606799152,0.64003492,61093.0,61092.0,0.00024557]
[1723606799646,0.64003676,61093.0,61092.0,0.00024557]
[1723606799852,0.54977704,61093.0,61092.0,0.00024557]
[1723606800748,0.55824478,61093.0,61092.0,0.00024557]
[1723606801149,0.081818,61087.0,61086.0,0.3608]
[1723606801349,0.22153922,61087.0,61086.0,0.3608]
[1723606801545,0.33592051,61087.0,61086.0,0.3608]
[1723606802567,0.30939929,61087.0,61086.0,0.3608]
[1723606803960,0.30939929,61087.0,61086.0,0.3618]
[1723606804951,0.30939929,61087.0,61086.0,0.001]
[1723606805857,0.19619929,61087.0,61086.0,0.001]
[1723606806042,0.081818,61087.0,61086.0,0.001]
[1723606807452,0.00108557,61093.0,61092.0,0.081811]
[1723606807656,0.0507,61109.0,61100.0,0.081801]
[1723606807957,0.08179,61108.0,61100.0,0.555801]
[1723606808155,0.1639,61109.0,61100.0,0.555801]
[1723606808661,0.00024557,61107.0,61100.0,0.555801]
[1723606809163,0.17981871,61106.0,61100.0,0.555801]
[1723606809455,0.09568809,61101.0,61100.0,0.555801]
[1723606810757,0.014,61101.0,61100.0,0.555801]
[1723606811164,0.025,61101.0,61100.0,0.555801]
[1723606811553,0.025,61101.0,61100.0,0.56525637]
[1723606814947,0.09156245,61101.0,61100.0,0.56525637]
[1723606815150,0.09156244,61101.0,61100.0,0.56525637]
[1723606815551,0.025,61101.0,61100.0,0.56525637]
[1723606816660,0.09663727,61101.0,61100.0,0.56525637]
[1723606817554,0.025,61101.0,61100.0,0.56525637]
[1723606817756,0.1382,61101.0,61100.0,0.45205637]
[1723606818246,0.1382,61101.0,61100.0,0.09125637]
[1723606820561,0.1382,61101.0,61100.0,0.00945537]
[1723606820765,0.1382,61101.0,61096.0,0.04853244]
[1723606820967,0.1132,61099.0,61096.0,0.04853244]
[1723606822149,0.1132,61099.0,61097.0,0.081804]
[1723606823659,0.1312,61099.0,61097.0,0.081804]
[1723606824261,0.1322,61099.0,61097.0,0.081804]
[1723606824461,0.1212,61099.0,61097.0,0.081804]
[1723606824660,0.1332,61099.0,61097.0,0.081804]
[1723606828966,0.1332,61099.0,61095.0,0.06465655]
[1723606829171,0.02,61099.0,61098.0,0.04851931]
[1723606829373,0.081805,61097.0,61095.0,0.06465655]
[1723606829670,0.1132,61096.0,61095.0,0.06465655]
[1723606830969,0.1132,61096.0,61094.0,0.00974938]
[1723606830970,0.474,61096.0,61094.0,0.00974938]
[1723606831267,0.555806,61096.0,61094.0,0.00974938]
[1723606831969,0.565806,61096.0,61094.0,0.00974938]
[1723606832169,0.214006,61096.0,61094.0,0.00974938]
[1723606832676,0.02651882,61095.0,61094.0,0.00974938]
[1723606834769,0.03151882,61095.0,61094.0,0.00974938]
[1723606837072,0.03151882,61095.0,61094.0,0.09155838]
[1723606840781,0.005,61095.0,61094.0,0.09155838]
[1723606847982,0.0507,61106.0,61094.0,1.06078938]
[1723606848183,0.11442952,61102.0,61094.0,0.00974938]
[1723606848385,0.11442952,61102.0,61101.0,0.442599]
[1723606849081,0.11442952,61102.0,61101.0,0.081799]
[1723606850483,0.12642952,61102.0,61101.0,0.194999]
[1723606851079,0.14742952,61102.0,61101.0,0.555799]
[1723606851284,0.10825756,61102.0,61101.0,1.146099]
[1723606851490,0.0499,61117.0,61102.0,0.49096]
[1723606851693,0.16347075,61118.0,61112.0,0.555785]
[1723606851892,0.16347075,61118.0,61112.0,0.916585]
[1723606853286,0.03527415,61113.0,61112.0,1.808465]
[1723606853588,0.035,61113.0,61112.0,1.808465]
[1723606854578,0.01830256,61113.0,61112.0,1.808465]
[1723606854792,0.01830256,61113.0,61112.0,1.958465]
[1723606855187,0.01830256,61113.0,61112.0,1.96818574]
[1723606855493,0.00830356,61113.0,61112.0,1.96818574]
[1723606855790,0.16347075,61118.0,61117.0,0.081778]
[1723606855985,0.16347075,61118.0,61117.0,0.555778]
[1723606856185,0.16347075,61118.0,61117.0,1.446618]
[1723606856986,0.16647075,61118.0,61117.0,1.448618]
[1723606858293,0.16647075,61118.0,61117.0,0.3628]
[1723606858294,0.003,61118.0,61117.0,0.3628]
[1723606858492,0.183177,61118.0,61117.0,0.3628]
[1723606859294,0.183177,61118.0,61117.0,0.002]
[1723606862392,0.49088,61117.0,61102.0,0.06451412]
[1723606862694,0.442597,61103.0,61102.0,0.06451412]
[1723606862887,0.442597,61103.0,61092.0,0.081811]
[1723606862888,0.081801,61100.0,61092.0,0.081811]
[1723606863092,0.10520664,61099.0,61093.0,0.08181]
[1723606863293,0.05810664,61098.0,61093.0,0.08181]
[1723606863996,0.05810664,61098.0,61091.0,0.3608]
[1723606865196,0.09765043,61093.0,61091.0,0.3608]
[1723606865589,0.17146634,61092.0,61091.0,0.3608]
[1723606866798,0.17146634,61092.0,61090.0,0.081814]
[1723606866999,0.17246634,61092.0,61091.0,0.017]
[1723606867305,0.14595043,61092.0,61091.0,0.017]
[1723606867899,0.14495043,61092.0,61090.0,0.011]
[1723606868900,0.14595043,61092.0,61090.0,0.02]
[1723606869598,0.14495043,61092.0,61091.0,0.009]
[1723606869806,0.14595043,61092.0,61091.0,0.017]
[1723606870603,0.14595043,61092.0,61091.0,0.008]
[1723606870805,0.0483,61092.0,61090.0,0.019]
[1723606871000,0.0493,61092.0,61091.0,0.007]
[1723606872205,0.0493,61092.0,61091.0,0.015]
[1723606872399,0.0473,61092.0,61091.0,0.008]
[1723606875911,0.081806,61096.0,61091.0,0.008]
[1723606877002,0.082806,61096.0,61091.0,0.014]
[1723606879108,0.081809,61094.0,61091.0,0.014]
[1723606881007,0.08181,61093.0,61091.0,0.008]
[1723606882405,0.06051923,61096.0,61089.0,0.37077502]
[1723606882705,0.06051923,61096.0,61091.0,0.008]
[1723606883306,0.3608,61093.0,61091.0,0.008]
[1723606883509,0.3618,61093.0,61091.0,0.014]
[1723606883708,0.081811,61092.0,61089.0,0.01024557]
[1723606883910,0.081811,61092.0,61091.0,0.002]
[1723606884216,0.194911,61092.0,61091.0,0.002]
[1723606885710,0.194911,61092.0,61091.0,0.01]
[1723606886217,0.555711,61092.0,61091.0,0.01]
[1723606886519,0.555711,61092.0,61091.0,0.002]
[1723606887619,0.555711,61092.0,61091.0,0.014]
[1723606887620,0.194911,61092.0,61091.0,0.014]
[1723606887819,0.195911,61092.0,61091.0,0.02]
[1723606910218,0.195911,61092.0,61091.0,0.14464786]
[1723606910423,0.195911,61092.0,61085.0,0.3608]
[1723606910424,0.163666,61076.0,61075.0,0.00184]
[1723606910636,0.081836,61074.0,61073.0,0.00204126]
[1723606910826,0.573036,61074.0,61073.0,0.00020126]
[1723606911022,0.194936,61074.0,61073.0,0.00020126]
[1723606911437,0.194936,61074.0,61073.0,0.06508549]
[1723606912436,0.194936,61074.0,61073.0,0.00020126]
[1723606912934,0.195936,61074.0,61073.0,0.00920126]
[1723606913228,0.196936,61074.0,61073.0,0.02320126]
[1723606920329,0.002,61074.0,61073.0,0.02320126]
[1723606920635,0.002,61074.0,61073.0,0.10503826]
[1723606921229,0.002,61074.0,61073.0,0.11451186]
[1723606922829,0.00024557,61080.0,61079.0,0.081829]
[1723606923027,0.00024557,61080.0,61079.0,0.194929]
[1723606924222,0.00124557,61080.0,61079.0,0.208929]
[1723606925032,0.00224557,61080.0,61079.0,0.208929]
[1723606927225,0.00224557,61080.0,61079.0,0.569729]
[1723606928346,0.3608,61090.0,61087.0,0.081818]
[1723606928637,0.3608,61090.0,61089.0,0.1131]
[1723606929733,0.3608,61090.0,61087.0,0.194918]
[1723606930440,0.3618,61090.0,61087.0,0.200918]
[1723606930737,0.3628,61090.0,61087.0,0.200918]
[1723606931139,0.3628,61090.0,61087.0,0.194918]
[1723606931140,0.02652025,61089.0,61087.0,0.194918]
[1723606931338,0.3618,61090.0,61087.0,0.194918]
[1723606931640,0.3628,61090.0,61087.0,0.205918]
[1723606932040,0.3638,61090.0,61087.0,0.213918]
[1723606932739,0.1131,61089.0,61087.0,0.1321]
[1723606932941,0.03159586,61088.0,61087.0,0.019]
[1723606933633,0.05811719,61088.0,61087.0,0.019]
[1723606934130,0.05811719,61088.0,61085.0,0.3608]
[1723606934328,0.05811719,61088.0,61087.0,0.1131]
[1723606934740,0.05911719,61088.0,61087.0,0.1131]
[1723606934937,0.02752133,61088.0,61087.0,0.1131]
[1723606935139,0.02752133,61088.0,61087.0,0.1211]
[1723606935337,0.02852133,61088.0,61087.0,0.1211]
[1723606935834,0.1263675,61088.0,61087.0,0.1211]
[1723606936734,0.1263675,61088.0,61087.0,0.1131]
[1723606937241,0.1263675,61088.0,61087.0,0.1201]
[1723606938943,0.09984617,61088.0,61087.0,0.1201]
[1723606948351,0.21294617,61088.0,61087.0,0.007]
[1723606952754,0.31574617,61088.0,61087.0,0.007]
[1723606953253,0.2179,61088.0,61087.0,0.007]
[1723606953455,0.299717,61088.0,61087.0,0.007]
[1723606955655,0.247517,61088.0,61087.0,0.007]
[1723606956155,0.196917,61088.0,61087.0,0.007]
[1723606956757,0.002,61088.0,61087.0,0.007]
[1723606963965,0.002,61088.0,61087.0,0.088818]
[1723606966364,0.002,61088.0,61087.0,0.21347061]
[1723606975070,0.002,61088.0,61087.0,0.21346218]
[1723606976269,0.002,61088.0,61087.0,0.088818]
[1723606978874,0.10011726,61088.0,61087.0,0.088818]
[1723606982674,0.10011726,61088.0,61087.0,0.201918]
[1723606991278,0.10011726,61088.0,61087.0,0.562718]
[1723606991472,0.00024557,61096.0,61095.0,0.081807]
[1723606991678,0.00024557,61096.0,61095.0,0.442607]
[1723606992678,0.00024557,61096.0,61095.0,0.194907]
[1723606993488,0.00424557,61096.0,61095.0,0.194907]
[1723606993883,0.00524557,61096.0,61095.0,0.194907]
[1723606994680,0.00524557,61096.0,61092.0,0.1131]
[1723606994888,0.00524557,61096.0,61092.0,0.194911]
[1723606995187,0.00524557,61096.0,61092.0,0.20460637]
[1723606995781,0.1131,61095.0,61092.0,0.20460637]
[1723606997088,0.1131,61095.0,61092.0,0.20660637]
[1723607000294,0.1131,61095.0,61093.0,0.08100332]
[1723607001587,0.08205157,61096.0,61094.0,0.1131]
[1723607002695,0.001,61095.0,61094.0,0.1131]
[1723607003390,0.08405157,61096.0,61094.0,0.1131]
[1723607003793,0.08205157,61096.0,61094.0,0.1131]
[1723607004094,0.002,61095.0,61094.0,0.1131]
[1723607004499,0.08405157,61096.0,61094.0,0.1131]
[1723607005185,0.00224557,61096.0,61094.0,0.1131]
[1723607006090,0.002,61095.0,61094.0,0.1131]
[1723607006495,0.00024557,61096.0,61094.0,0.1131]
[1723607006496,0.00224557,61096.0,61094.0,0.1131]
[1723607012103,0.00224557,61096.0,61094.0,0.194908]
[1723607012492,0.00224557,61096.0,61095.0,0.081807]
[1723607013504,0.00224557,61096.0,61095.0,0.20644089]
[1723607013687,0.00124557,61096.0,61095.0,0.20644089]
[1723607014001,0.00524557,61096.0,61095.0,0.20644089]
[1723607016393,0.00524557,61096.0,61095.0,0.28749499]
[1723607017606,0.00524557,61096.0,61095.0,0.20644089]
[1723607019505,0.09808848,61113.0,61107.0,0.081791]
[1723607019804,0.09808848,61113.0,61112.0,0.081785]
[1723607020004,0.49157842,61127.0,61112.0,0.4739]
[1723607020196,0.13077842,61127.0,61126.0,0.1131]
[1723607020500,0.49157842,61127.0,61126.0,0.1131]
[1723607020897,0.49157842,61127.0,61120.0,0.00024557]
[1723607020898,1.49547842,61127.0,61120.0,0.00024557]
[1723607021199,0.194873,61121.0,61120.0,0.00024557]
[1723607023103,0.194873,61121.0,61120.0,0.00124557]
[1723607023305,0.200873,61121.0,61120.0,0.00224557]
[1723607024097,0.200873,61121.0,61120.0,0.00124557]
[1723607024301,0.214873,61121.0,61120.0,0.00224557]
[1723607026803,0.1331,61121.0,61120.0,0.00224557]
[1723607027396,0.02,61121.0,61120.0,0.00224557]
[1723607030703,0.1331,61121.0,61120.0,0.00224557]
[1723607032911,0.02,61121.0,61120.0,0.68795957]
[1723607033200,0.007,61127.0,61126.0,0.081766]
[1723607033403,0.007,61127.0,61126.0,0.555666]
[1723607035406,0.018,61127.0,61126.0,0.556666]
[1723607035798,0.011,61127.0,61126.0,0.556666]
[1723607035999,0.012,61127.0,61126.0,0.557666]
[1723607038615,0.012,61127.0,61126.0,0.196866]
[1723607038811,0.012,61127.0,61126.0,0.557666]
[1723607040513,0.00024557,61133.0,61132.0,0.081758]
[1723607040722,0.00024557,61133.0,61132.0,0.555658]
[1723607042617,0.00124557,61133.0,61132.0,0.557658]
[1723607042819,0.00124557,61133.0,61132.0,0.3628]
[1723607043006,0.97372257,61133.0,61132.0,0.001]